bitfinex-derivatives/quotes_SOLF0:USTF0_20260226
["timestamp","ask_amount","ask_price","bid_price","bid_amount"]
[1772123186949,3.60229577,86.574,86.496,3.59070964]
[1772123187657,10.3984,86.549,86.497,10.4046]
[1772123188650,10.3973,86.558,86.497,10.4046]
[1772123188856,3.60229577,86.574,86.514,0.07308977]
[1772123189257,3.60229577,86.574,86.514,3.66379941]
[1772123189454,3.60229577,86.574,86.514,3.59070964]
[1772123189864,3.60229577,86.595,86.535,0.07321237]
[1772123190252,3.60229577,86.595,86.535,3.66392201]
[1772123190456,3.60229577,86.615,86.535,3.59070964]
[1772123190656,3.60229577,86.637,86.541,3.59070964]
[1772123190853,3.60229577,86.637,86.561,3.59070964]
[1772123192057,3.60229577,86.659,86.581,3.59070964]
[1772123192756,3.60229577,86.689,86.601,3.59070964]
[1772123193064,3.60229577,86.689,86.621,3.59070964]
[1772123193956,10.384,86.669,86.621,3.59070964]
[1772123194351,3.60229577,86.689,86.621,3.59070964]
[1772123194557,10.3838,86.671,86.621,3.59070964]
[1772123195156,10.3849,86.662,86.602,3.84519901]
[1772123195763,3.51770204,86.671,86.605,14.23679901]
[1772123196164,3.51770204,86.671,86.605,3.84519901]
[1772123196368,3.51770204,86.671,86.586,3.84519901]
[1772123196663,10.3886,86.631,86.586,3.84519901]
[1772123197062,3.51770204,86.647,86.586,3.84519901]
[1772123197374,10.3894,86.624,86.561,3.84519901]
[1772123197665,3.51770204,86.647,86.561,3.84519901]
[1772123198057,3.51770204,86.647,86.571,10.3957]
[1772123198259,3.51770204,86.647,86.561,3.84519901]
[1772123199270,3.51770204,86.629,86.562,3.84519901]
[1772123199670,10.39,86.62,86.562,3.84519901]
[1772123200471,10.391,86.611,86.562,3.84519901]
[1772123201267,10.3921,86.602,86.562,3.84519901]
[1772123202269,10.3908,86.612,86.562,3.84519901]
[1772123203271,3.61430923,86.669,86.566,3.76784444]
[1772123204670,3.61430923,86.669,86.533,34.77]
[1772123204671,3.61430923,86.669,86.589,3.76784444]
[1772123205078,3.61430923,86.669,86.609,0.07283871]
[1772123205264,10.3864,86.649,86.609,0.07283871]
[1772123205671,10.3864,86.649,86.589,3.76784444]
[1772123205869,10.3874,86.641,86.589,3.76784444]
[1772123206076,3.61430923,86.647,86.589,3.76784444]
[1772123206773,3.61430923,86.669,86.589,3.76784444]
[1772123206967,3.61430923,86.669,86.6,10.3922]
[1772123207470,3.61430923,86.669,86.609,3.76784444]
[1772123207675,3.61430923,86.669,86.626,0.07412095]
[1772123208676,3.61430923,86.655,86.591,3.76784444]
[1772123209270,10.3877,86.639,86.591,3.76784444]
[1772123209473,3.61430923,86.655,86.591,3.76784444]
[1772123210278,10.3865,86.648,86.6,10.3922]
[1772123210871,10.3855,86.657,86.603,3.76784444]
[1772123211075,3.61430923,86.673,86.603,3.76784444]
[1772123211672,3.61430923,86.673,86.622,10.3896]
[1772123212080,3.61430923,86.673,86.62,3.76784444]
[1772123212684,3.61430923,86.692,86.621,3.76784444]
[1772123213189,10.3837,86.672,86.625,3.76784444]
[1772123213483,3.61430923,86.692,86.625,3.76784444]
[1772123214488,3.61430923,86.692,86.62,8.22346746]
[1772123214489,10.384,86.67,86.626,3.76784444]
[1772123215187,10.383,86.678,86.629,3.76784444]
[1772123215489,3.61430923,86.692,86.629,3.76784444]
[1772123215982,10.3809,86.695,86.641,3.76784444]
[1772123216985,10.3818,86.688,86.643,10.387]
[1772123217393,10.3818,86.688,86.641,3.76784444]
[1772123217586,10.3818,86.688,86.508,34.78630706]
[1772123217587,3.61430923,86.693,86.607,3.76784444]
[1772123217794,3.61430923,86.689,86.607,3.76784444]
[1772123219284,3.61430923,86.689,86.639,0.07304272]
[1772123219881,3.61430923,86.688,86.589,3.76784444]
[1772123220090,3.61430923,86.672,86.589,3.76784444]
[1772123220280,3.61430923,86.652,86.589,3.76784444]
[1772123220681,3.61430923,86.67,86.589,3.76784444]
[1772123220889,3.61430923,86.67,86.601,3.76784444]
[1772123221593,3.61430923,86.67,86.58,8.22346746]
[1772123221594,3.61430923,86.67,86.581,3.76784444]
[1772123221893,3.61430923,86.659,86.584,3.76784444]
[1772123222490,0.0741984,86.63,86.584,3.76784444]
[1772123224389,3.61430923,86.662,86.587,3.76784444]
[1772123224988,3.61430923,86.679,86.605,3.76784444]
[1772123225388,3.61430923,86.702,86.621,3.76784444]
[1772123225886,10.3812,86.693,86.643,14.15484444]
[1772123226090,3.61430923,86.702,86.643,14.15484444]
[1772123226589,10.382,86.686,86.643,14.15484444]
[1772123226784,10.382,86.686,86.643,3.76784444]
[1772123226986,3.61430923,86.702,86.643,3.76784444]
[1772123227796,10.3819,86.687,86.643,3.76784444]
[1772123227995,3.61430923,86.702,86.643,3.76784444]
[1772123228195,10.3818,86.688,86.644,10.3869]
[1772123228391,3.61430923,86.702,86.62,8.22346746]
[1772123228593,3.61430923,86.702,86.626,3.76784444]
[1772123228995,3.61430923,86.686,86.604,3.76784444]
[1772123229295,3.61430923,86.686,86.586,3.76784444]
[1772123229790,10.3867,86.647,86.595,10.3928]
[1772123229989,3.80717822,86.669,86.595,10.3928]
[1772123230187,10.3875,86.64,86.586,14.16164444]
[1772123230389,3.80717822,86.652,86.587,3.72730528]
[1772123231200,3.80717822,86.684,86.587,3.72730528]
[1772123231894,10.3865,86.649,86.6,10.3922]
[1772123232100,3.80717822,86.667,86.6,10.3922]
[1772123232793,10.3872,86.642,86.592,10.3931]
[1772123232994,3.80717822,86.667,86.593,3.72730528]
[1772123233191,20.7642,86.685,86.601,3.72730528]
[1772123233192,3.80717822,86.685,86.601,3.72730528]
[1772123233496,10.3841,86.669,86.62,10.3898]
[1772123233802,10.3841,86.669,86.621,3.72730528]
[1772123234303,10.3841,86.669,86.623,10.3894]
[1772123234599,10.3859,86.654,86.621,3.72730528]
[1772123234800,10.3859,86.654,86.601,3.72730528]
[1772123235000,3.80717822,86.667,86.601,3.72730528]
[1772123235195,8.38969252,86.689,86.601,3.72730528]
[1772123235196,10.3839,86.67,86.601,3.72730528]
[1772123235997,10.3825,86.682,86.621,3.72730528]
[1772123236297,3.80717822,86.707,86.621,3.72730528]
[1772123236496,36.5989098,86.703,86.647,3.72730528]
[1772123236801,26.2190098,86.703,86.647,3.72730528]
[1772123237499,26.2190098,86.703,86.655,10.3855]
[1772123237699,26.2190098,86.703,86.647,3.72730528]
[1772123237895,10.381,86.694,86.647,3.72730528]
[1772123238591,0.073794,86.679,86.647,3.72730528]
[1772123238797,0.073794,86.679,86.621,3.72730528]
[1772123239403,3.80717822,86.689,86.621,3.72730528]
[1772123239602,3.80717822,86.689,86.6,8.22346746]
[1772123239805,3.80717822,86.689,86.601,3.72730528]
[1772123240702,3.80717822,86.689,86.632,3.72730528]
[1772123241806,3.80717822,86.689,86.643,10.387]
[1772123242003,26.2190098,86.703,86.632,3.72730528]
[1772123242303,26.2190098,86.703,86.641,3.72730528]
[1772123243105,10.3805,86.698,86.649,10.3863]
[1772123243307,10.3805,86.698,86.649,3.72730528]
[1772123244305,26.2190098,86.703,86.649,3.72730528]
[1772123245106,26.2190098,86.703,86.661,10.3849]
[1772123245901,26.2190098,86.703,86.649,3.72730528]
[1772123245902,10.3803,86.7,86.649,3.72730528]
[1772123246403,0.07394971,86.691,86.649,3.72730528]
[1772123247709,0.07394971,86.691,86.668,10.3841]
[1772123248199,26.2190098,86.703,86.669,3.72730528]
[1772123248604,26.2190098,86.703,86.671,10.3837]
[1772123248997,3.80717822,86.702,86.641,3.72730528]
[1772123249204,3.80717822,86.702,86.621,3.72730528]
[1772123249410,3.80717822,86.689,86.621,3.72730528]
[1772123249805,3.80717822,86.671,86.602,3.72730528]
[1772123250711,3.80717822,86.689,86.602,3.72730528]
[1772123251099,10.3829,86.679,86.625,3.72730528]
[1772123251304,3.80717822,86.689,86.625,3.72730528]
[1772123252106,10.3827,86.68,86.634,10.3881]
[1772123252610,3.80717822,86.689,86.625,3.72730528]
[1772123253011,10.3817,86.688,86.642,10.3872]
[1772123253307,10.3817,86.688,86.625,3.72730528]
[1772123253512,10.3817,86.688,86.639,10.3875]
[1772123254206,10.3817,86.688,86.646,10.3867]
[1772123255108,10.3827,86.68,86.639,10.3875]
[1772123255912,3.78496263,86.685,86.651,0.07305573]
[1772123258007,3.78496263,86.685,86.61,8.21359536]
[1772123258512,10.385,86.661,86.624,10.3893]
[1772123258710,3.78496263,86.685,86.611,3.68351695]
[1772123259411,10.3823,86.683,86.638,10.3876]
[1772123259912,10.3831,86.677,86.638,10.3876]
[1772123260111,3.78496263,86.685,86.627,3.68351695]
[1772123260416,3.78496263,86.685,86.611,3.85370181]
[1772123261709,10.3836,86.673,86.63,10.3885]
[1772123262712,3.68053918,86.669,86.622,10.3895]
[1772123263015,3.68053918,86.669,86.61,3.85370181]
[1772123264011,3.68053918,86.669,86.618,10.39]
[1772123265411,3.68053918,86.669,86.61,3.85370181]
[1772123266909,10.3853,86.659,86.615,10.3903]
[1772123267108,10.3853,86.659,86.61,3.85370181]
[1772123267322,3.68053918,86.685,86.61,3.85370181]
[1772123268919,3.68053918,86.685,86.628,10.3889]
[1772123268920,10.3844,86.666,86.628,10.3889]
[1772123269517,10.3834,86.674,86.628,10.3889]
[1772123269713,3.68053918,86.685,86.628,10.3889]
[1772123270215,3.68053918,86.685,86.634,10.3881]
[1772123270709,3.68053918,86.685,86.627,3.85370181]
[1772123271315,10.3816,86.689,86.652,10.386]
[1772123271909,3.68053918,86.701,86.642,3.85370181]
[1772123272119,10.3825,86.682,86.642,3.85370181]
[1772123272316,10.3825,86.682,86.621,3.85370181]
[1772123272714,10.3831,86.677,86.638,10.3876]
[1772123272917,0.07288936,86.68,86.638,10.3876]
[1772123273118,3.68053918,86.687,86.621,3.85370181]
[1772123274120,10.3835,86.674,86.629,10.3887]
[1772123275024,3.68053918,86.674,86.603,3.85370181]
[1772123275316,3.68053918,86.669,86.587,3.85370181]
[1772123276425,10.3877,86.639,86.594,10.3929]
[1772123277015,10.3877,86.639,86.601,10.3921]
[1772123277619,10.3877,86.639,86.594,10.3929]
[1772123278220,10.3877,86.639,86.601,10.3921]
[1772123278421,3.68053918,86.647,86.601,10.3921]
[1772123279527,10.3872,86.643,86.601,10.3921]
[1772123279830,3.68053918,86.664,86.608,10.3912]
[1772123280435,3.68053918,86.664,86.609,3.85370181]
[1772123280634,0.07303598,86.645,86.609,3.85370181]
[1772123281135,0.07303598,86.645,86.614,10.3905]
[1772123281332,0.07303598,86.645,86.609,3.85370181]
[1772123282132,3.75357516,86.645,86.581,3.85370181]
[1772123282337,10.3879,86.637,86.594,10.3929]
[1772123282525,0.07303598,86.645,86.581,3.85370181]
[1772123282730,3.68053918,86.661,86.581,3.85370181]
[1772123282925,3.68053918,86.661,86.582,3.85370181]
[1772123283333,3.68053918,86.678,86.601,3.85370181]
[1772123283837,10.3859,86.653,86.601,3.85370181]
[1772123284037,3.68053918,86.66,86.581,3.85370181]
[1772123284930,3.68053918,86.641,86.581,3.85370181]
[1772123286038,3.68053918,86.661,86.589,3.85370181]
[1772123286434,3.68053918,86.661,86.581,3.85370181]
[1772123286836,10.3883,86.633,86.585,10.394]
[1772123287037,3.68053918,86.641,86.581,3.85370181]
[1772123287838,10.389,86.627,86.588,10.3937]
[1772123288040,3.68053918,86.641,86.581,3.85370181]
[1772123288239,10.3899,86.62,86.581,3.85370181]
[1772123288434,0.07283829,86.62,86.581,3.85370181]
[1772123288833,8.43017262,86.659,86.589,3.85370181]
[1772123289029,3.68053918,86.658,86.589,3.85370181]
[1772123290938,3.68053918,86.658,86.604,3.51935739]
[1772123291935,10.3865,86.648,86.604,3.51935739]
[1772123292333,3.68053918,86.658,86.604,3.51935739]
[1772123292533,3.88651547,86.643,86.59,10.3934]
[1772123292734,3.88651547,86.669,86.581,3.51935739]
[1772123293431,21.0106669,86.711,86.58,8.21359536]
[1772123293432,3.88651547,86.686,86.625,3.51935739]
[1772123293633,3.88651547,86.686,86.609,3.51935739]
[1772123293937,8.43017262,86.689,86.619,3.51935739]
[1772123294235,3.88651547,86.688,86.619,3.51935739]
[1772123294842,10.383,86.677,86.619,3.51935739]
[1772123295038,14.26951547,86.677,86.619,3.51935739]
[1772123295338,49.02488943,86.798,86.589,20.9065746]
[1772123295339,3.88651547,86.717,86.651,3.51935739]
[1772123295730,3.88651547,86.702,86.631,3.51935739]
[1772123295932,3.88651547,86.681,86.613,3.51935739]
[1772123296738,3.88651547,86.669,86.595,3.51935739]
[1772123297334,3.88651547,86.669,86.623,0.07337628]
[1772123297655,3.88651547,86.655,86.595,3.51935739]
[1772123298042,10.3858,86.654,86.598,10.3924]
[1772123298244,14.27231547,86.654,86.598,10.3924]
[1772123298441,14.27231547,86.654,86.58,8.21359536]
[1772123298442,3.88651547,86.654,86.599,3.51935739]
[1772123299146,3.88651547,86.654,86.58,8.21359536]
[1772123299147,3.88651547,86.672,86.61,3.51935739]
[1772123299544,3.88651547,86.661,86.591,3.51935739]
[1772123300347,0.07420258,86.635,86.591,3.51935739]
[1772123300549,0.07420258,86.635,86.593,10.393]
[1772123302047,0.07420258,86.635,86.574,3.51935739]
[1772123302543,3.88651547,86.645,86.574,3.51935739]
[1772123302945,3.88651547,86.645,86.577,10.3949]
[1772123302946,0.072963,86.613,86.577,10.3949]
[1772123303450,0.072963,86.613,86.577,13.91425739]
[1772123303851,0.072963,86.613,86.578,3.51935739]
[1772123304052,0.072963,86.613,86.579,10.3947]
[1772123304450,0.072963,86.613,86.58,3.51935739]
[1772123304653,3.88651547,86.659,86.583,3.51935739]
[1772123305648,3.88651547,86.657,86.583,3.51935739]
[1772123305953,10.3872,86.642,86.59,10.3934]
[1772123306254,3.88651547,86.656,86.583,3.51935739]
[1772123306649,3.88651547,86.651,86.589,10.3935]
[1772123307958,10.3868,86.646,86.589,10.3935]
[1772123308352,3.88651547,86.645,86.589,10.3935]
[1772123308654,3.88651547,86.645,86.583,3.51935739]
[1772123308655,14.27501547,86.632,86.583,3.51935739]
[1772123309049,14.27501547,86.632,86.584,10.3942]
[1772123309653,14.27501547,86.632,86.583,3.51935739]
[1772123310050,14.27501547,86.632,86.54,20.7988]
[1772123310051,3.88651547,86.619,86.525,3.51935739]
[1772123310261,3.88651547,86.618,86.53,3.51935739]
[1772123310658,3.88651547,86.593,86.53,3.51935739]
[1772123312648,10.3939,86.586,86.531,10.4005]
[1772123312855,3.88651547,86.593,86.531,10.4005]
[1772123313756,3.88651547,86.593,86.553,0.07340091]
[1772123315463,10.3933,86.592,86.553,0.07340091]
[1772123315659,3.60269551,86.619,86.553,3.82138118]
[1772123316164,3.60269551,86.619,86.553,3.74798027]
[1772123316566,10.3919,86.603,86.554,10.3977]
[1772123316764,3.60269551,86.619,86.554,10.3977]
[1772123317264,3.60269551,86.619,86.57,0.07357962]
[1772123317454,8.22824166,86.63,86.54,8.22824166]
[1772123317455,3.60269551,86.595,86.543,10.3991]
[1772123317659,3.67636353,86.595,86.531,3.74798027]
[1772123318059,3.60269551,86.595,86.531,3.74798027]
[1772123318870,10.395,86.578,86.532,10.4003]
[1772123320266,14.11030737,86.578,86.532,10.4003]
[1772123320570,0.07284979,86.564,86.532,10.4003]
[1772123323569,0.07284979,86.564,86.538,10.3996]
[1772123323964,0.07284979,86.564,86.531,3.74798027]
[1772123325265,0.07284979,86.564,86.522,3.71425996]
[1772123325873,3.71530737,86.577,86.522,3.71425996]
[1772123326768,3.71530737,86.577,86.477,11.40534477]
[1772123326769,3.71530737,86.577,86.507,3.71425996]
[1772123327365,3.71530737,86.552,86.511,10.4029]
[1772123327567,3.71530737,86.549,86.5,3.07521749]
[1772123328173,10.3991,86.544,86.5,13.47931749]
[1772123328468,10.3991,86.544,86.5,3.07521749]
[1772123328868,10.3991,86.544,86.452,34.63]
[1772123328869,10.3999,86.537,86.492,3.71425996]
[1772123329069,3.71530737,86.549,86.492,3.71425996]
[1772123329676,3.71530737,86.549,86.48,8.23936149]
[1772123329677,3.71530737,86.549,86.502,3.71425996]
[1772123329877,3.71530737,86.564,86.502,3.71425996]
[1772123330278,10.397,86.561,86.512,10.4027]
[1772123330673,3.71530737,86.579,86.502,3.71425996]
[1772123331881,10.3958,86.571,86.529,10.4008]
[1772123332074,3.71530737,86.579,86.529,10.4008]
[1772123332980,3.71530737,86.579,86.508,3.71425996]
[1772123333772,3.71530737,86.579,86.532,3.71425996]
[1772123333970,3.71530737,86.596,86.532,3.71425996]
[1772123334375,10.3935,86.59,86.538,10.3996]
[1772123334572,10.3935,86.59,86.532,3.71425996]
[1772123335888,10.3935,86.59,86.544,10.3989]
[1772123336279,3.71530737,86.584,86.516,3.71425996]
[1772123337084,3.71530737,86.584,86.532,10.4004]
[1772123337984,10.3956,86.573,86.532,10.4004]
[1772123338182,3.71530737,86.572,86.501,3.71425996]
[1772123338684,3.71530737,86.572,86.533,10.4002]
[1772123338884,3.71530737,86.572,86.511,3.71425996]
[1772123339885,10.3966,86.564,86.525,10.4012]
[1772123340682,10.3966,86.564,86.51,8.23936149]
[1772123340683,3.71530737,86.557,86.51,8.23936149]
[1772123340883,3.71530737,86.557,86.495,3.71425996]
[1772123341487,3.71530737,86.555,86.495,3.71425996]
[1772123341691,3.71530737,86.555,86.471,3.71425996]
[1772123342990,10.4002,86.534,86.488,10.4057]
[1772123343696,3.71530737,86.54,86.488,10.4057]
[1772123344497,10.4005,86.532,86.505,0.07350131]
[1772123344791,3.71530737,86.559,86.471,3.71425996]
[1772123344989,10.3998,86.537,86.493,10.405]
[1772123345394,3.71530737,86.545,86.486,3.71425996]
[1772123345888,3.71530737,86.562,86.486,3.71425996]
[1772123346283,3.71530737,86.562,86.491,3.71425996]
[1772123346992,10.397,86.561,86.513,10.4026]
[1772123347192,3.71530737,86.562,86.513,10.4026]
[1772123347693,14.11220737,86.562,86.517,10.4021]
[1772123348492,8.23936149,86.58,86.517,10.4021]
[1772123348493,10.396,86.57,86.517,3.71425996]
[1772123348692,14.11130737,86.57,86.517,3.71425996]
[1772123349690,10.3963,86.567,86.519,10.4019]
[1772123349994,3.66293658,86.569,86.519,10.4019]
[1772123350996,3.66293658,86.567,86.519,10.4019]
[1772123351199,3.66293658,86.567,86.512,10.4028]
[1772123351499,14.06183658,86.545,86.486,3.81370776]
[1772123351691,14.06183658,86.545,86.504,10.4038]
[1772123352088,3.66293658,86.545,86.486,3.81370776]
[1772123352896,10.401,86.528,86.487,10.4058]
[1772123353297,3.66293658,86.545,86.487,10.4058]
[1772123353797,3.66293658,86.545,86.499,0.07414654]
[1772123354096,10.4,86.536,86.499,0.07414654]
[1772123355599,14.06313658,86.534,86.499,0.07414654]
[1772123356294,3.66293658,86.531,86.487,10.4058]
[1772123357200,3.66293658,86.531,86.454,3.81370776]
[1772123357393,3.66293658,86.531,86.438,3.81370776]
[1772123357593,3.66293658,86.501,86.444,10.411]
[1772123357995,3.66293658,86.501,86.438,3.81370776]
[1772123358398,10.4051,86.494,86.443,10.4111]
[1772123358601,3.66293658,86.501,86.443,10.4111]
[1772123358894,10.4049,86.495,86.443,10.4111]
[1772123359492,3.66293658,86.501,86.45,10.4102]
[1772123360590,10.4032,86.51,86.458,3.81370776]
[1772123361100,3.66293658,86.519,86.458,3.81370776]
[1772123361797,3.66293658,86.519,86.442,3.81370776]
[1772123362804,10.4047,86.497,86.451,10.4102]
[1772123362989,10.4047,86.497,86.472,0.0729876]
[1772123363193,3.66293658,86.501,86.472,0.0729876]
[1772123363391,3.66293658,86.516,86.472,0.0729876]
[1772123363894,3.66293658,86.516,86.456,3.81370776]
[1772123364300,3.66293658,86.513,86.456,3.81370776]
[1772123364899,10.4035,86.507,86.458,14.22300776]
[1772123365297,10.4035,86.507,86.46,3.07886763]
[1772123365804,10.4035,86.507,86.474,0.07382647]
[1772123366006,3.66293658,86.513,86.474,0.07382647]
[1772123366502,10.4012,86.526,86.49,3.07886763]
[1772123367198,3.66293658,86.53,86.49,3.07886763]
[1772123367403,3.66293658,86.53,86.481,3.81370776]
[1772123367598,20.7936,86.563,86.481,3.81370776]
[1772123367800,10.3996,86.539,86.485,3.81370776]
[1772123368402,10.3996,86.539,86.497,3.81370776]
[1772123369997,10.3996,86.539,86.498,10.4045]
[1772123370502,3.66293658,86.545,86.509,0.07310795]
[1772123372005,10.3992,86.543,86.509,0.07310795]
[1772123372299,34.63,86.583,86.509,0.07310795]
[1772123372300,3.66293658,86.561,86.509,0.07310795]
[1772123372798,3.66293658,86.551,86.502,10.4039]
[1772123373802,10.4,86.536,86.497,3.81370776]
[1772123374003,3.66293658,86.551,86.497,3.81370776]
[1772123374704,10.4001,86.535,86.497,14.21820776]
[1772123375300,10.3992,86.542,86.497,14.21820776]
[1772123378001,10.3992,86.542,86.502,10.4039]
[1772123378207,10.3984,86.549,86.502,3.51432738]
[1772123378404,3.66293658,86.551,86.502,3.51432738]
[1772123378999,10.3999,86.537,86.502,3.51432738]
[1772123379302,3.66293658,86.551,86.486,3.51432738]
[1772123380308,3.66293658,86.551,86.492,10.4052]
[1772123380309,10.4006,86.531,86.492,10.4052]
[1772123380506,3.66293658,86.551,86.486,3.51432738]
[1772123380908,10.3996,86.54,86.498,10.4044]
[1772123381507,10.3996,86.54,86.51,0.07365101]
[1772123382300,3.66293658,86.551,86.51,0.07365101]
[1772123383106,3.66293658,86.551,86.51,10.47665101]
[1772123385011,10.3983,86.55,86.51,10.47665101]
[1772123388516,10.3973,86.558,86.516,10.4022]
[1772123389221,10.3973,86.558,86.52,3.0746572]
[1772123390020,14.09920232,86.558,86.52,3.0746572]
[1772123390322,3.70190232,86.547,86.51,3.0746572]
[1772123390720,3.70190232,86.547,86.5,3.0746572]
[1772123390923,3.70190232,86.547,86.49,3.0746572]
[1772123391514,3.70190232,86.539,86.49,3.0746572]
[1772123392324,3.70190232,86.539,86.506,0.07367467]
[1772123392923,10.4004,86.533,86.506,0.07367467]
[1772123393127,3.70190232,86.539,86.506,0.07367467]
[1772123393514,3.70190232,86.527,86.506,0.07367467]
[1772123393713,3.70190232,86.527,86.481,3.87890084]
[1772123394121,10.4018,86.521,86.481,3.87890084]
[1772123394522,3.70190232,86.527,86.481,3.87890084]
[1772123394726,3.70190232,86.527,86.49,3.0746572]
[1772123395724,10.4012,86.526,86.49,3.0746572]
[1772123395924,3.70190232,86.541,86.491,3.87890084]
[1772123396523,3.70190232,86.541,86.5,3.0746572]
[1772123396724,10.4003,86.533,86.5,3.0746572]
[1772123396926,10.4003,86.533,86.491,3.87890084]
[1772123397529,0.07463905,86.521,86.491,3.87890084]
[1772123400226,0.07463905,86.521,86.442,34.63]
[1772123400227,3.77654137,86.521,86.472,3.87890084]
[1772123400426,3.70190232,86.519,86.472,3.87890084]
[1772123400827,3.70190232,86.506,86.459,3.87890084]
[1772123401133,3.70190232,86.499,86.445,3.87890084]
[1772123401327,10.4046,86.498,86.451,10.4101]
[1772123401528,20.7967,86.55,86.481,3.87890084]
[1772123401731,3.70190232,86.551,86.491,3.87890084]
[1772123402026,3.70190232,86.551,86.51,3.0746572]
[1772123402227,3.70190232,86.569,86.52,3.0746572]
[1772123402634,3.70190232,86.569,86.51,6.95355804]
[1772123402930,14.09790232,86.569,86.52,3.0746572]
[1772123403128,3.70190232,86.568,86.53,3.0746572]
[1772123403734,14.09810232,86.567,86.53,3.0746572]
[1772123404033,14.09810232,86.567,86.521,3.87890084]
[1772123404524,3.0746572,86.56,86.51,3.0746572]
[1772123404724,3.70190232,86.549,86.5,3.0746572]
[1772123405231,3.70190232,86.549,86.491,3.87890084]
[1772123405431,3.70190232,86.549,86.439,20.8232]
[1772123405432,3.70190232,86.568,86.501,3.87890084]
[1772123405633,3.70190232,86.583,86.521,3.87890084]
[1772123406130,3.70190232,86.583,86.532,10.4004]
[1772123407238,3.70190232,86.577,86.521,3.87890084]
[1772123407924,8.23858314,86.6,86.521,3.87890084]
[1772123407925,3.70190232,86.575,86.521,3.87890084]
[1772123408328,3.70190232,86.575,86.506,3.87890084]
[1772123409535,10.3979,86.554,86.507,13.9984731]
[1772123409734,0.07342414,86.549,86.507,13.9984731]
[1772123409930,0.07342414,86.549,86.507,3.5951731]
[1772123410131,14.12969499,86.541,86.49,3.5951731]
[1772123410936,10.4004,86.533,86.49,3.5951731]
[1772123411131,3.73029499,86.541,86.49,3.5951731]
[1772123413229,8.39237778,86.579,86.501,3.5951731]
[1772123413429,3.73029499,86.583,86.521,3.5951731]
[1772123413635,10.3945,86.582,86.523,3.5951731]
[1772123414234,3.73029499,86.571,86.523,3.5951731]
[1772123414441,3.73029499,86.571,86.503,3.5951731]
[1772123416044,10.3979,86.554,86.504,10.4037]
[1772123416241,3.73029499,86.568,86.504,10.4037]
[1772123416437,3.73029499,86.567,86.503,3.5951731]
[1772123416643,3.73029499,86.565,86.484,3.5951731]
[1772123416941,3.73029499,86.563,86.484,3.5951731]
[1772123417136,3.73029499,86.563,86.495,3.5951731]
[1772123417642,10.3994,86.541,86.495,3.5951731]
[1772123417842,10.3994,86.541,86.52,0.0733844]
[1772123418043,10.3994,86.541,86.495,3.5951731]
[1772123418345,3.73029499,86.548,86.495,3.5951731]
[1772123418837,3.73029499,86.548,86.48,8.23858314]
[1772123419042,3.73029499,86.548,86.478,3.5951731]
[1772123419239,10.4021,86.519,86.478,3.5951731]
[1772123419433,3.73029499,86.528,86.481,3.5951731]
[1772123419636,3.73029499,86.544,86.481,3.5951731]
[1772123420440,3.73029499,86.562,86.481,3.5951731]
[1772123420746,3.73029499,86.561,86.481,3.5951731]
[1772123421141,10.3978,86.554,86.503,3.5951731]
[1772123421346,3.73029499,86.561,86.503,3.5951731]
[1772123421940,3.73029499,86.561,86.508,3.5951731]
[1772123422841,0.0744861,86.543,86.508,3.5951731]
[1772123423042,0.0744861,86.543,86.51,10.403]
[1772123423539,0.0744861,86.543,86.508,3.5951731]
[1772123425437,0.0744861,86.543,86.511,3.5951731]
[1772123425643,10.3973,86.558,86.511,3.5951731]
[1772123426546,0.07404508,86.543,86.511,3.5951731]
[1772123428843,0.07404508,86.543,86.483,3.5951731]
[1772123429045,0.07404508,86.543,86.504,3.5951731]
[1772123429348,10.3983,86.55,86.504,3.5951731]
[1772123429543,10.3991,86.544,86.504,3.5951731]
[1772123430141,10.3982,86.551,86.506,3.5951731]
[1772123431949,10.3982,86.551,86.507,10.4034]
[1772123432444,3.73029499,86.561,86.48,8.23858314]
[1772123432445,3.73029499,86.561,86.492,3.5951731]
[1772123432644,0.07465823,86.538,86.492,3.5951731]
[1772123433952,0.07465823,86.538,86.455,28.74584567]
[1772123433953,3.73029499,86.532,86.471,3.5951731]
[1772123435052,3.73029499,86.532,86.472,3.86753987]
[1772123435650,10.4016,86.523,86.472,3.86753987]
[1772123436045,10.4023,86.517,86.472,3.86753987]
[1772123436346,3.73029499,86.532,86.452,3.86753987]
[1772123436550,8.23858314,86.54,86.452,3.86753987]
[1772123436551,3.79293432,86.53,86.452,3.86753987]
[1772123436750,3.79293432,86.528,86.452,3.86753987]
[1772123437750,0.07298825,86.499,86.452,3.86753987]
[1772123437943,0.07298825,86.499,86.455,10.4096]
[1772123438749,0.07298825,86.499,86.459,3.86753987]
[1772123439849,0.07298825,86.499,86.462,3.87375803]
[1772123440053,11.96847518,86.551,86.471,3.87375803]